Cogmind - Beta 9.4 @@@ ROGUE MODE // 2020.01.29 @ 10:19:38 // Winter2019/RPGLIKE Player: Nalzok Result: Destroyed by G-47 Trooper with Particle Gun Performance ------------- Evolutions (2) 1000 Regions Visited (4) 800 Robots Destroyed (47) 235 Value Destroyed (1163) 1163 Prototype IDs (1) 20 Alien Tech Used (0) 0 Bonus (24) 24 TOTAL SCORE: 3242 Bonus ------- High Alert Combat Kills 24 Cogmind --------- Core Integrity 0/600 Matter 136/300 Energy 234/240 System Corruption 0% Temperature Cool (228) Movement Walking (130) Location -8/Materials Parts ------- > --- POWER (1) -------- Nuclear Core > --- PROPULSION (2) --- Titanium Leg Titanium Leg > --- UTILITY (2) ------ Advanced Visual Processing Unit Experimental Sensor Array > --- WEAPON (2) ------- Flak Cannon Flak Cannon > --- INVENTORY (4) ---- Titanium Leg Flak Cannon Grenade Launcher Makeshift Spear Peak State ------------ > --- POWER ------------ Nuclear Core > --- PROPULSION ------- Titanium Leg Titanium Leg > --- UTILITY ---------- Advanced Visual Processing Unit Experimental Sensor Array > --- WEAPON ----------- Flak Cannon Flak Cannon > --- INVENTORY -------- Titanium Leg Flak Cannon Grenade Launcher Makeshift Spear [Rating: 25] Favorites ----------- Power Ion Engine Engine Ion Engine Power Core Nuclear Core Propulsion Titanium Leg Leg Titanium Leg Hover Unit Backup Propulsion I Utility Advanced Visual Processing Unit Device Experimental Sensor Array Processor Advanced Visual Processing Unit Protection Improved Propulsion Shielding Weapon Flak Cannon Energy Gun Medium Laser Energy Cannon Light EM Pulse Cannon Ballistic Gun Light Assault Rifle Ballistic Cannon Flak Cannon Launcher Grenade Launcher Build | -11 -10 -9 -9 -8 ------- Run | Scr Mat Mat Min Mat Slots Evolved 3 | 2 1 . . . Power . | . . . . . Propulsion 1 | . 1 . . . Utility 1 | 1 . . . . Weapon 1 | 1 . . . . Parts Attached 26 | 1 5 16 2 2 Power 2 | . 1 . . 1 Engine 1 | . 1 . . . Core 1 | . . . . 1 Reactor . | . . . . . Propulsion 6 | . . 5 1 . Treads . | . . . . . Leg 6 | . . 5 1 . Wheel . | . . . . . Hover . | . . . . . Flight . | . . . . . Utility 8 | . 3 4 1 . Device 2 | . . 1 1 . Storage . | . . . . . Processor 4 | . 3 1 . . Hackware . | . . . . . Protection 2 | . . 2 . . Artifact . | . . . . . Weapon 10 | 1 1 7 . 1 Energy Gun 1 | 1 . . . . Energy Cannon 2 | . . 2 . . Ballistic Gun . | . . . . . Ballistic Cannon 5 | . . 4 . 1 Launcher 2 | . 1 1 . . Special Weapon . | . . . . . Impact Weapon . | . . . . . Slashing Weapon . | . . . . . Piercing Weapon . | . . . . . Special Melee Weapon . | . . . . . Unidentified Prototypes 1 | . . . 1 . Parts Lost . | . . . . . Power . | . . . . . Propulsion . | . . . . . Utility . | . . . . . Weapon . | . . . . . Highest Loss Streak . | . . . . . Average Slot Usage (%) 98 | . 85 99 100 100 Engine 13 | . 15 14 14 8 Leg 24 | . 15 22 28 28 Hover 1 | . 4 4 . . Device 6 | . . 4 8 14 Processor 14 | . 18 14 14 14 Protection 5 | . . 9 6 . Energy Cannon 1 | . . 5 . . Ballistic Gun 3 | . 15 5 . . Ballistic Cannon 19 | . . 10 28 28 Launcher 3 | . 12 7 . . Naked Turns . | . . . . . Heaviest Build 20 | 6 9 19 19 20 Greatest Support 34 | 10 10 34 34 34 Greatest Overweight (x) 2 | . 1 2 . . Average Overweight (x) . | . . . . . Largest Inventory Capacity 4 | . 2 4 4 4 Average Capacity 3 | . . 3 4 4 Most Carried 4 | . 1 4 4 4 Average Carried 3 | . . 2 3 4 Final Capacity 4 | . 2 4 4 4 Final Carried 4 | . 1 4 4 4 Class Distribution -------------------- 71% | Hacker-Mutant 28% | Mutant Dominant Class ---------------- Mutant | -10/Materials Mutant | -9/Materials Hacker-Mutant | -9/Mines Hacker-Mutant | -8/Materials Resources | -11 -10 -9 -9 -8 ----------- Run | Scr Mat Mat Min Mat Matter Collected 1102 | 210 86 197 525 84 Remotely . | . . . . . Salvage Created 746 | . 115 303 149 179 Parts 62 | . 19 21 12 10 Haulers Intercepted . | . . . . . Recyclers Shooed 1 | . . 1 . . Parts Field Recycled . | . . . . . Retrieved Matter . | . . . . . Parts Self-Destructed . | . . . . . Prevented . | . . . . . Kills | -11 -10 -9 -9 -8 ------- Run | Scr Mat Mat Min Mat Combat Hostiles Destroyed 42 | . 11 12 14 5 Guns 1 | . . 1 . . Cannons 25 | . . 6 14 5 AOE 15 | . 11 4 . . Classes Destroyed 9 | . 3 1 2 3 Worker 1 | . . . . 1 Builder 1 | . . . . 1 Recycler 1 | . . . 1 . Watcher 2 | . 1 1 . . Swarmer 15 | . 6 6 3 . Grunt 12 | . 5 4 3 . Sentry 6 | . . 2 . 4 Hunter 1 | . . . . 1 Assembled 8 | . . . 8 . Best Kill Streak 8 | . 6 3 8 3 Combat Bots Only 8 | . 5 3 8 2 Max Kills in Single Turn 3 | . 2 2 3 2 Gunslinging . | . . . . . Exploded 2 | . 2 2 . . Melee . | . . . . . Uniques/NPCs Destroyed . | . . . . . Combat | -11 -10 -9 -9 -8 -------- Run | Scr Mat Mat Min Mat Damage Taken 1511 | . 330 318 293 570 Core 1168 | . 272 203 207 486 Absorbed by Shields . | . . . . . Redirected to Core 797 | . 182 163 161 291 Core Remaining (%) 80 | 100 74 . 66 . Volleys Fired 76 | . 13 21 23 19 Largest 2 | . 2 2 2 2 Hottest 112 | . 50 112 88 88 Shots Fired 146 | . 26 36 46 38 Gun 20 | . 13 7 . . Cannon 108 | . . 24 46 38 Launcher 18 | . 13 5 . . Special . | . . . . . Kinetic 121 | . 13 24 46 38 Thermal . | . . . . . Explosive 18 | . 13 5 . . Electromagnetic 7 | . . 7 . . Robot Hit Streak 30 | . 13 8 6 30 Robot Miss Streak 9 | . 2 3 9 2 Penetration Max . | . . . . . Secondary Targets . | . . . . . Shots Hit Robots 121 | . 18 27 41 35 Core Hits 127 | . 15 27 50 35 Critical Hits . | . . . . . Critical Kills . | . . . . . Critical Parts Destroyed . | . . . . . Melee Attacks . | . . . . . Impact . | . . . . . Slashing . | . . . . . Piercing . | . . . . . Sneak Attacks . | . . . . . Combat Hostiles . | . . . . . Follow-up Attacks . | . . . . . Damage Inflicted 3021 | . 883 730 667 741 Guns 100 | . 72 28 . . Cannons 1669 | . . 374 667 628 Explosions 1252 | . 811 328 . 113 Melee . | . . . . . Ramming . | . . . . . Kinetic 1653 | . 72 286 667 628 Thermal 113 | . . . . 113 Explosive 1139 | . 811 328 . . Electromagnetic 116 | . . 116 . . Impact . | . . . . . Slashing . | . . . . . Piercing . | . . . . . Highest Corruption . | . . . . . Average Corruption . | . . . . . Corruption Purged . | . . . . . Overload Shots . | . . . . . Overflow Damage 4 | . . . 4 . Projectiles 4 | . . . 4 . Explosions . | . . . . . Melee . | . . . . . Knockbacks 44 | . . 7 20 17 Impact . | . . . . . Kinetic 39 | . . 5 19 15 Secondary 5 | . . 2 1 2 Self-Inflicted Damage 148 | . 92 . . 56 Shots 6 | . 5 . . 1 Rammed . | . . . . . Targets Rammed . | . . . . . Kicked . | . . . . . Crushed . | . . . . . Highest Temperature 309 | . 43 216 238 309 Average Temperature 88 | . 14 62 108 109 Received Heat Transfer 414 | . 108 99 9 198 Effects 1 | . . . . 1 Matter Decay 1 | . . . . 1 Siege Activations . | . . . . . Robots Corrupted 1 | . . 1 . . Combat Hostiles 1 | . . 1 . . Parts Fried 3 | . . 3 . . Impact Corruptions . | . . . . . Robots Melted . | . . . . . Combat Hostiles . | . . . . . Parts Melted . | . . . . . Heat Transferred 100 | . . . . 100 Parts Sabotaged . | . . . . . Parts Stolen . | . . . . . Parts Stripped . | . . . . . Power Chain Reactions . | . . . . . Missiles Intercepted . | . . . . . Alert | -11 -10 -9 -9 -8 ------- Run | Scr Mat Mat Min Mat Peak Influence 496 | . 496 336 181 316 Average Influence 144 | . 212 206 79 174 Maximum Alert Level 2 | . 2 1 . 1 Low Security (%) 71 | 100 54 47 100 38 Level 1 25 | . 21 52 . 61 Level 2 3 | . 23 . . . Level 3 . | . . . . . Level 4 . | . . . . . Level 5 . | . . . . . High Security . | . . . . . Max Security . | . . . . . Squads Dispatched 4 | . 2 1 . 1 Investigation 2 | . 1 . . 1 Extermination . | . . . . . Reinforcement 2 | . 1 1 . . Assault . | . . . . . Garrison . | . . . . . Intercept . | . . . . . Construction Impeded . | . . . . . Haulers Reinforced . | . . . . . Stealth | -11 -10 -9 -9 -8 --------- Run | Scr Mat Mat Min Mat Distress Signals 7 | . 1 5 . 1 Communications Jammed . | . . . . . Distress Signals . | . . . . . Times Spotted 65 | . 13 19 21 12 Peak Tracking Total 8 | . 5 5 8 5 Tactical Retreats 4 | . . . 2 2 Traps | -11 -10 -9 -9 -8 ------- Run | Scr Mat Mat Min Mat Traps Triggered . | . . . . . Indirectly . | . . . . . Trap Hack Attempts . | . . . . . Triggered . | . . . . . Disarmed . | . . . . . Reprogrammed . | . . . . . Reused . | . . . . . Traps Extracted . | . . . . . Installed . | . . . . . Triggered . | . . . . . Machines | -11 -10 -9 -9 -8 ---------- Run | Scr Mat Mat Min Mat Machines Disabled 15 | . 9 . . 6 Max in Single Turn 6 | . 2 . . 6 Machines Sabotaged 1 | . 1 . . . Garrisons Compromised . | . . . . . Overloaded Fab Kills . | . . . . . Fab Network Shutdowns . | . . . . . Hacking | -11 -10 -9 -9 -8 --------- Run | Scr Mat Mat Min Mat Machines Accessed 11 | . 4 2 . 5 Terminals 7 | . 2 2 . 3 Fabricators . | . . . . . Repair Stations 2 | . 1 . . 1 Recycling Units 2 | . 1 . . 1 Scanalyzers . | . . . . . Garrison Access . | . . . . . Total Hacks 25 | . 10 8 . 7 Successful 19 | . 7 7 . 5 Failed 6 | . 3 1 . 2 Catastrophic 1 | . 1 . . . Database Lockouts . | . . . . . Manual 22 | . 7 8 . 7 Terminals 21 | . 8 8 . 5 Fabricators . | . . . . . Repair Stations 2 | . 1 . . 1 Recycling Units 2 | . 1 . . 1 Scanalyzers . | . . . . . Garrison Access . | . . . . . Terminal Hacks 1 | . 1 . . . Unreport Threat 1 | . 1 . . . Fabricator Hacks . | . . . . . Repair Station Hacks 2 | . 1 . . 1 Refit 2 | . 1 . . 1 Recycling Unit Hacks 1 | . 1 . . . Retrieve Components 1 | . 1 . . . Scanalyzer . | . . . . . Garrison Access Hacks . | . . . . . Unauthorized Hacks 36 | . 11 15 . 10 Terminals 14 | . 4 7 . 3 Track 3 | . 1 2 . . Assimilate 1 | . . 1 . . Botnet 6 | . 2 2 . 2 Detonate 1 | . . 1 . . Operators 1 | . . 1 . . Sabotage 2 | . 1 . . 1 Fabricators . | . . . . . Repair Stations . | . . . . . Recycling Units 1 | . . . . 1 Mask 1 | . . . . 1 Scanalyzers . | . . . . . Garrison Access . | . . . . . Data Cores Recovered . | . . . . . Used . | . . . . . Hacking Detections 6 | . 2 1 . 3 Full Trace Events . | . . . . . Feedback Events . | . . . . . Feedback Blocked . | . . . . . Robot Schematics Acquired . | . . . . . Robots Built . | . . . . . Matter . | . . . . . Time . | . . . . . Total Robot Build Rating . | . . . . . Part Schematics Acquired . | . . . . . Parts Built . | . . . . . Matter . | . . . . . Time . | . . . . . Total Part Build Rating . | . . . . . Parts Repaired . | . . . . . Time . | . . . . . Parts Recycled . | . . . . . Recycled Matter . | . . . . . Retrieved Matter . | . . . . . Retrieved Components 2 | . 2 . . . Parts Scanalyzed . | . . . . . Part Schematics Acquired . | . . . . . Parts Damaged . | . . . . . Bothacking | -11 -10 -9 -9 -8 ------------ Run | Scr Mat Mat Min Mat Used RIF Installer . | . . . . . Robots Hacked . | . . . . . Non-combat . | . . . . . Combat . | . . . . . Robot Hacks Applied . | . . . . . Relay Couplers Released . | . . . . . Robots Rewired . | . . . . . Allies Hacked . | . . . . . Hacks Repelled . | . . . . . Allies | -11 -10 -9 -9 -8 -------- Run | Scr Mat Mat Min Mat Total Allies 1 | . . 1 . . Largest Group 1 | . . 1 1 . Highest-Rated Group 10 | . . 10 10 . Highest-Rated Ally 10 | . . 10 10 . Total Orders 4 | . . 4 . . STAY 1 | . . 1 . . GOTO 1 | . . 1 . . FOLLOW 2 | . . 2 . . Ally Attacks . | . . . . . Total Damage . | . . . . . Kills . | . . . . . Allies Corrupted 1 | . . . 1 . Allies Melted . | . . . . . Intel | -11 -10 -9 -9 -8 ------- Run | Scr Mat Mat Min Mat Robot Analysis Total . | . . . . . Derelict Logs Recovered 2 | . . . 2 . Drone Launches . | . . . . . Drone Recoveries . | . . . . . Exploration | -11 -10 -9 -9 -8 ------------- Run | Scr Mat Mat Min Mat Turns Passed 1993 | 12 258 557 903 263 Spaces Moved 1042 | 9 146 274 483 130 Core . | . . . . . Treads . | . . . . . Legs 938 | 9 114 202 483 130 Wheels . | . . . . . Hover 104 | . 32 72 . . Flight . | . . . . . Fastest Speed 120 | 120 120 120 130 130 Average Speed 136 | 120 130 153 130 130 Slowest Speed 250 | 120 170 250 130 130 Overloaded Moves . | . . . . . Propulsion Burnouts . | . . . . . Robots Hopped . | . . . . . Cave-ins Triggered . | . . . . . Exploration Rate (%) 37 | 3 39 37 80 28 Regions Visited 4 Branch Regions 1 Pre-discovered Areas . | . . . . . Known Exits Taken . | . . . . . Unknown Exits Taken 4 | 1 1 1 1 . Scrap Searched 3 | . . . 3 . Spaces Dug . | . . . . . Terrain Destroyed 133 | . 60 37 . 36 Melee . | . . . . . Projectile . | . . . . . AOE 133 | . 60 37 . 36 Actions | -11 -10 -9 -9 -8 --------- Run | Scr Mat Mat Min Mat Total 1474 | 9 188 376 712 189 Wait 277 | . 17 39 189 32 Move 1038 | 8 145 273 482 130 Hop . | . . . . . Pick Up 7 | . . 6 1 . Fast Attach 17 | 1 4 10 1 1 Attach . | . . . . . Detach 3 | . 1 2 . . Swap 9 | . 1 6 1 1 Drop 19 | . 1 14 2 2 Fire 76 | . 13 21 23 19 Melee . | . . . . . Ram . | . . . . . Kick . | . . . . . Crush . | . . . . . Escape Stasis . | . . . . . Rewire . | . . . . . Trap . | . . . . . Miscellaneous 28 | . 6 5 13 4 Route ------- -11/Scrapyard -10/Materials -9/Materials -9/Mines -8/Materials (discovered 2 exits: Fac / [*Sto]) History --------- Turn | Location | Event 1 | -11/Scrapyard | Upgraded with Utility slot (x1) 1 | -11/Scrapyard | Upgraded with Weapon slot (x1) 1 | -11/Scrapyard | Discovered new exit (range 1) 13 | -11/Scrapyard | Entered Materials 169 | -10/Materials | Reached level 2 171 | -10/Materials | Upgraded with Propulsion slot (x1) 189 | -10/Materials | Discovered new exit (range 12) 271 | -10/Materials | Entered another Materials area 273 | -9/Materials | Reached level 3 324 | -9/Materials | Build established: Mutant 621 | -9/Materials | Reached level 4 742 | -9/Materials | Discovered new exit (range 17) 774 | -9/Materials | Core integrity fell below 50% 828 | -9/Materials | Entered Mines 828 | -9/Mines | Accompanied by 1 ally 831 | -9/Mines | Reached level 5 884 | -9/Mines | Build established: Hacker-Mutant 886 | -9/Mines | A weapon hastily lodged in a ceiling crevice suddenly fell to the ground 1010 | -9/Mines | Learned Materials security intel 1044 | -9/Mines | Discovered new exit (range 7) 1140 | -9/Mines | Assembled infested the area 1212 | -9/Mines | Found a damaged Exp. Sensor Array with a note attached 1215 | -9/Mines | Found Prototype Device 1215 | -9/Mines | Identified Exp. Sensor Array 1225 | -9/Mines | Destroyed 8 combat bots 1396 | -9/Mines | Learned 2 Materials zone layouts 1731 | -9/Mines | Entered Materials 1732 | -8/Materials | Identified exit to Factory 1733 | -8/Materials | Reached level 6 1927 | -8/Materials | Core integrity fell below 50% 1957 | -8/Materials | Discovered new exit (range 15) 1969 | -8/Materials | Core integrity fell below 20% 1978 | -8/Materials | Reached level 7 1994 | -8/Materials | Destroyed by G-47 Trooper with Particle Gun Last Messages --------------- Masking routine running. 01912_ G-47 Trooper knocked back. 01933_ Y-45 Defender destroyed. 01936_ Overheating: Matter decay (-14). 01942_ K-01 Serf collects debris. 01943_ Acquired 28 matter. 01957_ EXIT=FOUND 01974_ Connecting with Terminal... >>Force(Sabotage) SYSTEM_VULNERABLE[Fusion Modulator] NETWORK_OVERLOAD_FAIL 01974_ ALERT: Suspicious activity at Terminal M003. Dispatching Investigation squad. 01978_ Reached level 7. 01978_ Y-45 Defender destroyed. 01979_ Acquired 56 matter. 01981_ Upgraded: Hack Attack % (+5) 01982_ G-47 Trooper knocked back. 01994_ Y-45 Defender destroyed. [Achievement: Overachiever] Map ----- +----------------------------------------------------+ | ???????????????????????# | | ???????????????????????# """ """ | | ???????????????????????# """ """ | | ???????????????????????# """ """ | | ???????????????????????# | | ???????????????????????# ? | | ???????????????????????# ? ? * | | ???????????????????????# ################# | | ???????????????????????# #= #????????? | | ???????????????????????# +! #????????? | | ???????????????????????# !#= #????????? | | ???????????????????????# # "Y" #????????? | | ???????????????????????# # """ #????????? | | ???????????????????????# # #????????? | | ???????????????????????# ########????????? | | ???????????#???????????# #???????????????? | | ???????????# ??????????# #???????????????? | | ???????????# ?????????# #???????????????? | | ???????????# ????????# #??#########????? | | ??????????## #??????##? ##? #????? | | ??????????# ! ####### # #????? | | ??????????# g # #????? | | ??????????# < + #????? | | ??????????# g% ? # /!! #???? | | ??????????# ###g### # /! ##???? | | ??????????####???# @ ## #####?!! #????? | | ?????????????????# T ## #???# !#????? | | ?????????????????# ## #???###########???## | | ?????????????????# ## #?????????????????# | | ?????????????????# ## #?????????????????# | | ?????????????????# ## #?????????????????# | | ?????????????????# ## #?????????????????# | | ?????????????????###### #?????????????????# | | ??????????????????????# #?????????????????# | | ??????????????????????# ###########???????# | | ?????????????????????? ## #???????# | | ?????????????????????? ?# """#???????# | | ??????????????????????? ?# """#???###### | | ?????????????????????????# """#???# | | ?????????????????????? ?# #???# | | ?????????????????????? ?# """ #???# | | ?????????????????????? ?# "G ##??# | | ?????????????????????? T?+ """ ?#??# | | ?????????????????????? ?# ##??###### | | ??????????????????????+??##########????????? | | ????????????????????????? #?????????????? | | ????????????????????????? #?????????????? | | ????????????????????????? #?????????????? | | ????????????????????????? #?????????????? | | ????????????????????????? #?????????????? | +----------------------------------------------------+ Best States ------------- Heat Dissipation 39 Energy Generation 14 Energy Capacity 250 Matter Stores 300 Matter Capacity 300 Sight Range 22 Robot Scan Range 30 Terrain Scan Density 10 Armor Coverage 150 Propulsion Shielding 66 Evasion (%) 40 Targeting Accuracy 10 Offensive Hacking 25 Item Schematics ----------------- None Robot Schematics ------------------ None Fabricated ------------ Nothing Alien Tech Used ----------------- None Achievements -------------- Brute Force Overachiever Challenges ------------ None RPGLIKE | -11 -10 -9 -9 -8 --------- Run | Scr Mat Mat Min Mat Levels Raised 6 | . 1 2 1 2 XP Earned 12207 | 3000 2372 2935 1200 2700 XP Spent 11300 | 2900 1250 3150 1300 2700 Upgrades 20 | 8 3 4 2 3 Propulsion Slot 1 | . 1 . . . Utility Slot 1 | 1 . . . . Weapon Slot 1 | 1 . . . . Inventory Capacity 4 | . 2 2 . . Sight Range 2 | 2 . . . . Ranged Accuracy 6 | 2 . . 2 2 Hack Attack % 5 | 2 . 2 . 1 Protomatter Created 180 | . 43 36 75 26 Integrity Restored 561 | . 117 108 258 78 Core 561 | . 117 108 258 78 Protomatter Decayed 46 | . . . 46 . Game ------ Seed CatalystParticleMediator Manual? 0 Play Time 00:25:37 Cumulative 214.1 hours Start 2020.01.29 @ 00:37:15 End 2020.01.29 @ 10:19:38 Sessions 2 Manual Loads 0 Difficulty Rogue Special Mode Winter2019/RPGLIKE Game No. 342 Rogue 341 Adventurer 0 Explorer 1 Win Type - Total 1 Types 1/0/0/0/0/0/0 Lore% 60 Gallery% 77 Achievement% 50 Wizard Run 0 Options --------- ASCII 0 Keyboard 1 Movement Vi Keybinds 0 Fullscreen 1 Font 14/Cog Map View 72x52 Tactical HUD 1 Map Filters NONE Filters LOW_CONTRAST(13,24,33) Steam 0 RUN: 90afdc1c-8b7a-4162-bab0-bf2425af0399